fUST/lending_fUST_20260216
["ID","MTS","AMOUNT","RATE_DAILY","PERIOD"]
[405459256,1771176639045,-233.01161765,0.00017083,2]
[405459257,1771176639055,-500.0,0.00017083,2]
[405459258,1771176639065,-500.0,0.00017083,2]
[405459259,1771176639076,-500.0,0.00017083,2]
[405459260,1771176639086,-500.0,0.00017083,2]
[405459261,1771176639096,-500.0,0.00017083,2]
[405459262,1771176639106,-500.0,0.00017083,2]
[405459263,1771176639116,-500.0,0.00017083,2]
[405459264,1771176639126,-500.0,0.00017083,2]
[405459265,1771176639135,-500.0,0.00017083,2]
[405459266,1771176639145,-500.0,0.00017083,2]
[405459267,1771176639154,-500.0,0.00017083,2]
[405459268,1771176639164,-500.0,0.00017083,2]
[405459269,1771176639173,-500.0,0.00017083,2]
[405459270,1771176639183,-500.0,0.00017083,2]
[405459271,1771176639193,-500.0,0.00017083,2]
[405459272,1771176639204,-500.0,0.00017083,2]
[405459273,1771176639214,-500.0,0.00017083,2]
[405459274,1771176639223,-500.0,0.00017083,2]
[405459275,1771176639233,-500.0,0.00017083,2]
[405459276,1771176639243,-500.0,0.00017083,2]
[405459277,1771176639252,-440.0,0.00017083,2]
[405459278,1771176639261,-500.0,0.00017083,2]
[405459279,1771176639271,-500.0,0.00017083,2]
[405459280,1771176639281,-500.0,0.00017083,2]
[405459281,1771176639290,-500.0,0.00017083,2]
[405459282,1771176639300,-500.0,0.00017083,2]
[405459283,1771176639310,-500.0,0.00017083,2]
[405459284,1771176639319,-500.0,0.00017083,2]
[405459285,1771176639329,-500.0,0.00017083,2]
[405459286,1771176639338,-500.0,0.00017083,2]
[405459287,1771176639348,-500.0,0.00017083,2]
[405459288,1771176639357,-500.0,0.00017083,2]
[405459289,1771176639367,-500.0,0.00017083,2]
[405459290,1771176639376,-500.0,0.00017083,2]
[405459291,1771176639386,-500.0,0.00017083,2]
[405459292,1771176639395,-500.0,0.00017083,2]
[405459293,1771176639405,-500.0,0.00017083,2]
[405459294,1771176639414,-500.0,0.00017083,2]
[405459295,1771176639423,-500.0,0.00017083,2]
[405459296,1771176639433,-500.0,0.00017083,2]
[405459297,1771176639443,-500.0,0.00017083,2]
[405459298,1771176639452,-500.0,0.00017083,2]
[405459299,1771176639462,-500.0,0.00017083,2]
[405459300,1771176639472,-500.0,0.00017083,2]
[405459301,1771176639481,-500.0,0.00017083,2]
[405459302,1771176639491,-500.0,0.00017083,2]
[405459303,1771176639500,-500.0,0.00017083,2]
[405459304,1771176639510,-500.0,0.00017083,2]
[405459305,1771176639520,-500.0,0.00017083,2]
[405459306,1771176639529,-500.0,0.00017083,2]
[405459307,1771176639539,-500.0,0.00017083,2]
[405459308,1771176639548,-500.0,0.00017083,2]
[405459309,1771176639558,-500.0,0.00017083,2]
[405459310,1771176639567,-500.0,0.00017083,2]
[405459311,1771176639577,-388.2715703,0.00017083,2]
[405459312,1771176639588,-500.0,0.00017083,2]
[405459313,1771176639609,-500.0,0.00017083,2]
[405459314,1771176639629,-500.0,0.00017083,2]
[405459315,1771176639638,-500.0,0.00017083,2]
[405459316,1771176639650,-500.0,0.00017083,2]
[405459317,1771176639659,-500.0,0.00017083,2]
[405459318,1771176639671,-500.0,0.00017083,2]
[405459319,1771176639682,-500.0,0.00017083,2]
[405459320,1771176639695,-500.0,0.00017083,2]
[405459321,1771176639706,-500.0,0.00017083,2]
[405459322,1771176639718,-500.0,0.00017083,2]
[405459323,1771176639728,-500.0,0.00017083,2]
[405459324,1771176639738,-500.0,0.00017083,2]
[405459325,1771176639747,-233.01697801,0.00017083,2]
[405459326,1771176639758,-500.0,0.00017083,2]
[405459327,1771176639767,-500.0,0.00017083,2]
[405459328,1771176639777,-500.0,0.00017083,2]
[405459329,1771176639787,-500.0,0.00017083,2]
[405459330,1771176639796,-500.0,0.00017083,2]
[405459331,1771176639807,-500.0,0.00017083,2]
[405459332,1771176639819,-500.0,0.00017083,2]
[405459333,1771176639829,-500.0,0.00017083,2]
[405459334,1771176639839,-500.0,0.00017083,2]
[405459335,1771176639850,-500.0,0.00017083,2]
[405459336,1771176639861,-500.0,0.00017083,2]
[405459337,1771176639872,-418.81687343,0.00017083,2]
[405459338,1771176639883,-500.0,0.00017083,2]
[405459339,1771176639892,-500.0,0.00017083,2]
[405459340,1771176639901,-500.0,0.00017083,2]
[405459341,1771176639917,-500.0,0.00017083,2]
[405459342,1771176639929,-500.0,0.00017083,2]
[405459343,1771176639939,-500.0,0.00017083,2]
[405459344,1771176639950,-500.0,0.00017083,2]
[405459345,1771176639962,-500.0,0.00017083,2]
[405459346,1771176639972,-24668.64433488,0.00017084,2]
[405459347,1771176639987,-16344.49714025,0.00017084,2]
[405459348,1771176639998,-180.37,0.000171,2]
[405459349,1771176640011,-2779.92894,0.00017416,2]
[405459350,1771176640021,-7672.7801,0.00017416,2]
[405459351,1771176640031,-4586.5913324,0.00017523,2]
[405459352,1771176640043,-3702.7215793,0.00017523,2]
[405459353,1771176640055,-3492.1655424,0.00017523,2]
[405459354,1771176640065,-1517.2456467,0.00017523,2]
[405459355,1771176640076,-414.15751983,0.00017533,2]
[405459356,1771176640085,-500.0,0.00017612,2]
[405459357,1771176640095,-150.602,0.00017614,2]
[405459358,1771176640105,-150.352,0.00017614,2]
[405459359,1771176640115,-151.089,0.00017614,2]
[405459360,1771176640126,-320.88286494,0.00017696,2]
[405459361,1771176640137,-168.0,0.00017711,2]
[405459362,1771176640148,-181.585,0.00017725,2]
[405459363,1771176640159,-2169.0,0.00017797,2]
[405459364,1771176640169,-634.0,0.00017797,2]
[405459365,1771176640180,-1379.0,0.00017797,2]
[405459366,1771176640191,-723.0,0.00017797,2]
[405459367,1771176640202,-186.383,0.00017797,2]
[405459368,1771176640213,-425.0,0.00017797,2]
[405459369,1771176640224,-431.55,0.00017797,2]
[405459370,1771176640235,-150.0,0.00017808,2]
[405459371,1771176640246,-168.0,0.00017846,2]
[405459372,1771176640257,-300.0,0.00017885,2]
[405459373,1771176640268,-300.0,0.00017885,2]
[405459374,1771176640278,-300.0,0.00017885,2]
[405459375,1771176640289,-300.0,0.00017885,2]
[405459376,1771176640301,-300.0,0.00017885,2]
[405459377,1771176640311,-300.0,0.00017885,2]
[405459378,1771176640322,-300.0,0.00017885,2]
[405459379,1771176640334,-300.0,0.00017885,2]
[405459381,1771176640343,-300.0,0.00017885,2]
[405459383,1771176640353,-300.0,0.00017885,2]
[405459384,1771176640365,-300.0,0.00017885,2]
[405459385,1771176640376,-300.0,0.00017885,2]
[405459387,1771176640388,-300.0,0.00017885,2]
[405459388,1771176640399,-300.0,0.00017885,2]
[405459389,1771176640411,-300.0,0.00017885,2]
[405459390,1771176640422,-600.0,0.00017885,2]
[405459391,1771176640433,-500.0,0.00017975,2]
[405459393,1771176640443,-250.0,0.00017975,2]
[405459394,1771176640453,-250.0,0.00017975,2]
[405459395,1771176640463,-242.83894578,0.00017975,2]
[405459396,1771176640472,-501.30030461,0.00017975,2]
[405459397,1771176640481,-151.0,0.00017975,2]
[405459399,1771176640491,-250.0,0.00017975,2]
[405459401,1771176640501,-151.0,0.00017975,2]
[405459403,1771176640510,-250.0,0.00017975,2]
[405459405,1771176640519,-151.0,0.00017975,2]
[405459407,1771176640528,-250.0,0.00017975,2]
[405459409,1771176640537,-151.0,0.00017975,2]
[405459411,1771176640546,-187.78006525,0.00017975,2]
[405459413,1771176640555,-250.0,0.00017975,2]
[405459415,1771176640565,-151.0,0.00017975,2]
[405459417,1771176640574,-194.72792766,0.00017975,2]
[405459419,1771176640585,-194.43547789,0.00017975,2]
[405459421,1771176640594,-201.93286099,0.00017975,2]
[405459423,1771176640603,-151.0,0.00017975,2]
[405459425,1771176640611,-209.40437684,0.00017975,2]
[405459427,1771176640621,-186.48551683,0.00017975,2]
[405459429,1771176640630,-217.15233878,0.00017975,2]
[405459431,1771176640640,-500.0,0.00017975,2]
[405459433,1771176640649,-225.18697532,0.00017975,2]
[405459434,1771176640659,-500.0,0.00017975,2]
[405459435,1771176640670,-233.51889341,0.00017975,2]
[405459436,1771176640679,-500.0,0.00017975,2]
[405459437,1771176640689,-242.15909246,0.00017975,2]
[405459438,1771176640699,-500.0,0.00017975,2]
[405459439,1771176640708,-251.11897888,0.00017975,2]
[405459440,1771176640718,-446.94518739,0.00017975,2]
[405459441,1771176640727,-160.42286585,0.00017975,2]
[405459442,1771176640736,-260.4103811,0.00017975,2]
[405459443,1771176640746,-250.0,0.00017975,2]
[405459444,1771176640755,-270.0455652,0.00017975,2]
[405459445,1771176640765,-280.03725112,0.00017975,2]
[405459446,1771176640774,-290.39862941,0.00017975,2]
[405459447,1771176640784,-301.1433787,0.00017975,2]
[405459448,1771176640793,-250.0,0.00017975,2]
[405459449,1771176640803,-168.0,0.00018006,2]
[405459450,1771176640812,-168.0,0.00018076,2]
[405459451,1771176640822,-469.66208838,0.00018088,2]
[405459452,1771176640831,-500.0,0.00018088,2]
[405459453,1771176640842,-387.0,0.000182,2]
[405459460,1771176640965,-2240.560877,0.00018274,2]
[405459462,1771176640975,-168.0,0.00018313,2]
[405459464,1771176640986,-177.85443385,0.00018353,2]
[405459466,1771176640995,-250.0,0.00018356,2]
[405459468,1771176641004,-168.0,0.00018393,2]
[405459470,1771176641013,-168.0,0.0001853,2]
[405459472,1771176641022,-168.0,0.00018545,2]
[405459474,1771176641032,-203.83853341,0.00018627,2]
[405459475,1771176641041,-420.0,0.00018656,2]
[405459477,1771176641050,-168.0,0.00018691,2]
[405459479,1771176641059,-168.0,0.00018699,2]
[405459482,1771176641072,-1680.0,0.00018748,2]
[405459484,1771176641092,-247.17147252,0.00018793,2]
[405459485,1771176641110,-168.0,0.00018882,2]
[405459487,1771176641119,-459.11245023,0.00018904,2]
[405459489,1771176641129,-197.64880361,0.00018926,2]
[405459491,1771176641144,-100000.0,0.0001899,2]
[405459493,1771176641155,-356.43840418,0.0001904,2]
[405459495,1771176641164,-500.0,0.00019042,2]
[405459498,1771176641175,-2240.560877,0.00019043,2]
[405459500,1771176641187,-151.0,0.00019178,2]
[405459501,1771176641199,-151.0,0.00019178,2]
[405459504,1771176641212,-1096.4178537,0.0001921,2]
[405459506,1771176641225,-444.90865053,0.0001923,2]
[405459508,1771176641236,-232.95832389,0.00019335,2]
[405459510,1771176641248,-734.0,0.0001936,2]
[405459512,1771176641257,-104983.90515017,0.00019406,2]
[405459646,1771176643755,-25870.37326395,0.00019406,2]
[405459759,1771176646574,-703.76187584,0.00019406,2]
[405462098,1771176723077,-300.0,0.00017965,2]
[405462099,1771176723104,-247.698,0.00017966,2]
[405462100,1771177616088,-265.92742142,0.00016574,2]
[405462101,1771177637094,-941.22359518,0.00016574,2]
[405462102,1771177637115,-150.0,0.00016742,2]
[405462103,1771177637139,-667.0,0.0001691,2]
[405462104,1771177637158,-247.66500771,0.00017082,2]
[405462146,1771177831677,-252.33499229,0.00017082,2]
[405462148,1771177831686,-235.49517966,0.00017082,2]
[405462150,1771177831697,-264.50482034,0.00017082,2]
[405462152,1771177831706,-500.0,0.00017082,2]
[405462154,1771177831715,-670.0,0.00017082,2]
[405462156,1771177831723,-940.16935415,0.00017592,7]
[405462158,1771177831733,-276.90831729,0.00017592,7]
[405462160,1771177831742,-206.14913005,0.00017764,2]
[405462163,1771177831751,-180.37,0.000179,2]
[405462164,1771177831760,-1200.0,0.00017964,2]
[405462165,1771177831770,-300.0,0.00017965,2]
[405462166,1771177831779,-262.0,0.00017965,2]
[405462167,1771177831788,-300.0,0.00017965,2]
[405462168,1771177831796,-2169.0,0.00017966,2]
[405462169,1771177831805,-634.0,0.00017966,2]
[405462170,1771177831814,-723.0,0.00017966,2]
[405462171,1771177831823,-425.0,0.00017966,2]
[405462172,1771177831832,-5123.60612714,0.00017966,2]
[405462173,1771177831841,-790.94871205,0.00017975,2]
[405462174,1771177831850,-363.99738108,0.00017975,2]
[405462175,1771177831860,-355.7678465,0.00017975,2]
[405462176,1771177831869,-1235.85736259,0.00017975,2]
[405462177,1771177831878,-5518.82012247,0.00018042,2]
[405462178,1771177831887,-529.31161138,0.00018088,2]
[405462179,1771177831895,-187.78006525,0.00018134,2]
[405462180,1771177831904,-194.72792766,0.00018134,2]
[405462181,1771177831912,-201.93286099,0.00018134,2]
[405462182,1771177831921,-312.023842,0.00018134,2]
[405462183,1771177831930,-500.0,0.00018142,2]
[405462184,1771177831940,-500.0,0.00018142,2]
[405462185,1771177831949,-500.0,0.00018142,2]
[405462186,1771177831958,-500.0,0.00018142,2]
[405462187,1771177831967,-500.0,0.00018142,2]
[405462188,1771177831976,-303.66855311,0.00018142,2]
[405462189,1771177831985,-500.0,0.00018142,2]
[405462190,1771177831994,-500.0,0.00018142,2]
[405462191,1771177832003,-500.0,0.00018142,2]
[405462192,1771177832012,-500.0,0.00018142,2]
[405462193,1771177832025,-500.0,0.00018142,2]
[405462194,1771177832033,-500.0,0.00018142,2]
[405462195,1771177832042,-227.49655228,0.00018142,2]
[405462196,1771177832051,-500.0,0.00018142,2]
[405462197,1771177832060,-500.0,0.00018142,2]
[405462198,1771177832069,-500.0,0.00018142,2]
[405462199,1771177832078,-500.0,0.00018142,2]
[405462200,1771177832087,-500.0,0.00018142,2]
[405462201,1771177832095,-500.0,0.00018142,2]
[405462202,1771177832104,-500.0,0.00018142,2]
[405462203,1771177832112,-500.0,0.00018142,2]
[405462204,1771177832121,-500.0,0.00018142,2]
[405462205,1771177832130,-500.0,0.00018142,2]
[405462206,1771177832140,-468.78897915,0.00018142,2]
[405462207,1771177832150,-500.0,0.00018142,2]
[405462208,1771177832159,-500.0,0.00018142,2]
[405462209,1771177832168,-500.0,0.00018142,2]
[405462210,1771177832177,-500.0,0.00018142,2]
[405462211,1771177832187,-500.0,0.00018142,2]
[405462212,1771177832196,-500.0,0.00018142,2]
[405462213,1771177832206,-436.37890836,0.00018142,2]
[405462214,1771177832216,-500.0,0.00018142,2]
[405462215,1771177832226,-500.0,0.00018142,2]
[405462217,1771177832369,-500.0,0.00018142,2]
[405462219,1771177832379,-500.0,0.00018142,2]
[405462221,1771177832388,-500.0,0.00018142,2]
[405462222,1771177832398,-500.0,0.00018142,2]
[405462224,1771177832408,-500.0,0.00018142,2]
[405462226,1771177832417,-342.11284247,0.00018142,2]
[405462228,1771177832429,-157.88715753,0.00018142,2]
[405462230,1771177832439,-385.11284247,0.00018142,2]
[405462232,1771177832450,-114.88715753,0.00018142,2]
[405462234,1771177832459,-500.0,0.00018142,2]
[405462235,1771177832469,-56.05284247,0.00018142,2]
[405462352,1771177838078,-457.86919848,0.00018141,2]
[405462354,1771177838088,-151.0,0.00018142,2]
[405462356,1771177838098,-8969.677974,0.00018145,2]
[405462358,1771177838108,-300.0,0.00018324,2]
[405462360,1771177838118,-300.0,0.00018324,2]
[405462362,1771177838128,-300.0,0.00018324,2]
[405462364,1771177838142,-300.0,0.00018324,2]
[405462367,1771177838152,-300.0,0.00018324,2]
[405462370,1771177838163,-300.0,0.00018324,2]
[405462373,1771177838173,-300.0,0.00018324,2]
[405462376,1771177838183,-300.0,0.00018324,2]
[405462379,1771177838193,-300.0,0.00018324,2]
[405462382,1771177838203,-300.0,0.00018324,2]
[405462385,1771177838213,-300.0,0.00018324,2]
[405462387,1771177838223,-300.0,0.00018324,2]
[405462389,1771177838233,-300.0,0.00018324,2]
[405462391,1771177838243,-300.0,0.00018324,2]
[405462393,1771177838253,-300.0,0.00018324,2]
[405462395,1771177838262,-168.0,0.00018332,2]
[405462397,1771177838276,-168.0,0.00018437,2]
[405462399,1771177838288,-191.3671028,0.00018518,7]
[405462401,1771177838299,-600.0,0.00018689,2]
[405462403,1771177838309,-2203.246025,0.00018727,2]
[405462405,1771177838319,-177.0,0.00018742,2]
[405462407,1771177838329,-7556.87826484,0.0001899,2]
[405462409,1771177838338,-1041.41231283,0.0001916,2]
[405463400,1771178748127,-409.04431432,0.00017257,2]
[405463401,1771178812100,-476.59274214,0.00017257,2]
[405463402,1771178843117,-2486.61007099,0.00017084,2]
[405463461,1771179032098,-3437.80193787,0.00016913,2]
[405463463,1771179032109,-312.14174071,0.00016913,2]
[405463464,1771179032118,-244.18,0.00017084,2]
[405463465,1771179032127,-150.0,0.00017302,2]
[405463466,1771179032137,-500.0,0.00017608,2]
[405463468,1771179032146,-1200.0,0.00017965,2]
[405463470,1771179032155,-300.0,0.00017965,2]
[405463472,1771179032164,-225.005,0.00017966,2]
[405463473,1771179032174,-203.65,0.00017966,2]
[405463475,1771179032183,-634.0,0.00017966,2]
[405463476,1771179032192,-2169.0,0.00017966,2]
[405463477,1771179032201,-425.0,0.00018002,2]
[405463478,1771179032211,-431.55,0.00018002,2]
[405463479,1771179032220,-723.0,0.00018002,2]
[405463480,1771179032229,-186.383,0.00018002,2]
[405463481,1771179032239,-258.186167,0.00018056,2]
[405463482,1771179032248,-244.18,0.00018084,2]
[405463483,1771179032258,-303.16338553,0.00018144,2]
[405463484,1771179032267,-226.41391193,0.00018144,2]
[405463485,1771179032276,-318.81472619,0.0001824,7]
[405463486,1771179032286,-702.48206595,0.0001824,7]
[405463487,1771179032296,-4828.96760717,0.00018316,2]
[405463488,1771179032305,-420.66698334,0.00018324,2]
[405463489,1771179032314,-565.29012891,0.00018324,2]
[405463490,1771179032324,-342.0,0.00018355,5]
[405463491,1771179032333,-372.54199519,0.00018415,2]
[405463492,1771179032342,-155.0,0.00018416,2]
[405463493,1771179032353,-3356.53370907,0.0001842,2]
[405463494,1771179032366,-240.44388403,0.0001842,2]
[405463495,1771179032375,-2337.81788256,0.0001842,2]
[405463632,1771179040072,-500.0,0.00018415,2]
[405463633,1771179040081,-500.0,0.00018415,2]
[405463634,1771179040090,-637.23720304,0.00018415,2]
[405463635,1771179040111,-500.0,0.00018415,2]
[405463636,1771179040120,-304.82926899,0.00018415,2]
[405463637,1771179040129,-500.0,0.00018415,2]
[405463638,1771179040138,-500.0,0.00018415,2]
[405463639,1771179040147,-500.0,0.00018415,2]
[405463641,1771179040301,-173.11968936,0.00018415,2]
[405463642,1771179040312,-500.0,0.00018415,2]
[405463643,1771179040322,-500.0,0.00018415,2]
[405463644,1771179040331,-500.0,0.00018415,2]
[405463645,1771179040340,-500.0,0.00018415,2]
[405463646,1771179040349,-500.0,0.00018415,2]
[405463647,1771179040357,-500.0,0.00018415,2]
[405463648,1771179040366,-500.0,0.00018415,2]
[405463649,1771179040375,-500.0,0.00018415,2]
[405463650,1771179040384,-500.0,0.00018415,2]
[405463651,1771179040393,-500.0,0.00018415,2]
[405463652,1771179040402,-500.0,0.00018415,2]
[405463653,1771179040411,-500.0,0.00018415,2]
[405463654,1771179040419,-500.0,0.00018415,2]
[405463655,1771179040428,-500.0,0.00018415,2]
[405463656,1771179040437,-500.0,0.00018415,2]
[405463657,1771179040446,-500.0,0.00018415,2]
[405463658,1771179040455,-500.0,0.00018415,2]
[405463659,1771179040463,-500.0,0.00018415,2]
[405463660,1771179040472,-500.0,0.00018415,2]
[405463661,1771179040481,-500.0,0.00018415,2]
[405463662,1771179040490,-500.0,0.00018415,2]
[405463663,1771179040498,-500.0,0.00018415,2]
[405463664,1771179040507,-500.0,0.00018415,2]
[405463665,1771179040515,-500.0,0.00018415,2]
[405463666,1771179040524,-500.0,0.00018415,2]
[405463667,1771179040533,-500.0,0.00018415,2]
[405463668,1771179040542,-500.0,0.00018415,2]
[405463669,1771179040551,-500.0,0.00018415,2]
[405463670,1771179040564,-500.0,0.00018415,2]
[405463671,1771179040574,-500.0,0.00018415,2]
[405463672,1771179040583,-508.1894166,0.00018415,2]
[405463673,1771179040592,-398.36855105,0.00018415,2]
[405463929,1771179043223,-52.95474913,0.00018415,2]
[405464181,1771179045919,-48.67669982,0.00018415,2]
[405464183,1771179045928,-500.0,0.00018415,2]
[405464185,1771179045938,-500.0,0.00018415,2]
[405464187,1771179045947,-500.42822344,0.00018415,2]
[405464189,1771179045957,-500.0,0.00018415,2]
[405464191,1771179045966,-73.08588277,0.00018415,2]
[405469453,1771179957113,-567.91458828,0.00017021,2]
[405469457,1771180035134,-2441.78760216,0.00017021,2]
[405469458,1771180035156,-152.26941171,0.0001728,2]
[405469459,1771180035177,-480.26892946,0.00017367,2]
[405469482,1771180231940,-156.67939243,0.00017193,2]
[405469483,1771180231949,-200.23438563,0.00017267,2]
[405469484,1771180231959,-150.0,0.0001728,2]
[405469485,1771180231971,-211.15413104,0.00017367,2]
[405469486,1771180231981,-158.78960413,0.0001811,2]
[405469487,1771180231999,-901.21039587,0.0001811,2]
[405469488,1771180232009,-24.12591909,0.00018118,2]
[405470354,1771180246287,-345.289305,0.00017937,2]
[405470358,1771180246318,-219.78101335,0.00017937,2]
[405476972,1771180320291,-875.70402405,0.00017937,2]
[405481881,1771181242104,-300.0,0.00016452,2]
[405481882,1771181242126,-5000.0,0.00016453,2]
[405481883,1771181242148,-244.18,0.00016453,2]
[405481884,1771181242168,-1275.25890478,0.00016562,2]
[405481885,1771181242189,-165.2703988,0.0001662,2]
[405481886,1771181242210,-757.20057001,0.0001662,2]
[405481887,1771181242233,-79.25512528,0.0001662,2]
[405481987,1771181432403,-790.38279329,0.0001662,2]
[405481988,1771181432416,-476.49642811,0.0001662,2]
[405481989,1771181432427,-2101.23158176,0.0001662,2]
[405481990,1771181432437,-1017.52223203,0.0001662,2]
[405481991,1771181432447,-1808.9284125,0.0001662,2]
[405481992,1771181432458,-662.0,0.0001662,2]
[405481993,1771181432470,-156.94246982,0.0001673,2]
[405481994,1771181432483,-290.78520219,0.00016985,2]
[405481995,1771181432676,-909.21479781,0.00016985,2]
[405481996,1771181432689,-53.9639581,0.00016986,2]
[405482044,1771181438370,-1159.22768334,0.00016562,2]
[405482047,1771181438381,-348.50175092,0.00016562,2]
[405482049,1771181438393,-1302.19882953,0.00016562,2]
[405482051,1771181438405,-2826.45064454,0.0001662,2]
[405482053,1771181438415,-2717.8846714,0.00016986,2]
[405482055,1771181438424,-300.0,0.00017032,2]
[405482057,1771181438434,-300.0,0.00017032,2]
[405482059,1771181438444,-300.0,0.00017032,2]
[405482061,1771181438453,-300.0,0.00017032,2]
[405482063,1771181438463,-360.814651,0.00017205,2]
[405482065,1771181438472,-260.77939663,0.00017492,2]
[405482068,1771181438482,-500.0,0.00017492,2]
[405482070,1771181438491,-500.0,0.00017492,2]
[405482072,1771181438501,-500.0,0.00017492,2]
[405482074,1771181438510,-500.0,0.00017492,2]
[405482076,1771181438519,-500.0,0.00017492,2]
[405482078,1771181438529,-500.0,0.00017492,2]
[405482080,1771181438538,-500.0,0.00017492,2]
[405482083,1771181438548,-500.0,0.00017492,2]
[405482085,1771181438557,-500.0,0.00017492,2]
[405482087,1771181438566,-500.0,0.00017492,2]
[405482090,1771181438576,-500.0,0.00017492,2]
[405482091,1771181438586,-500.0,0.00017492,2]
[405482093,1771181438594,-500.0,0.00017492,2]
[405482095,1771181438604,-500.0,0.00017492,2]
[405482097,1771181438613,-500.0,0.00017492,2]
[405482099,1771181438622,-346.55598916,0.00017492,2]
[405482101,1771181438632,-500.0,0.00017492,2]
[405482103,1771181438641,-500.0,0.00017492,2]
[405482105,1771181438651,-500.0,0.00017492,2]
[405482107,1771181438660,-500.0,0.00017492,2]
[405482109,1771181438669,-500.0,0.00017492,2]
[405482111,1771181438679,-500.0,0.00017492,2]
[405482113,1771181438688,-250.0,0.00017492,2]
[405482115,1771181438697,-500.0,0.00017492,2]
[405482117,1771181438706,-500.0,0.00017492,2]
[405482119,1771181438716,-500.0,0.00017492,2]
[405482121,1771181438725,-500.0,0.00017492,2]
[405482123,1771181438734,-500.0,0.00017492,2]
[405482125,1771181438744,-73.22410118,0.00017492,2]
[405482127,1771181438756,-426.77589882,0.00017492,2]
[405482129,1771181438766,-500.0,0.00017492,2]
[405482131,1771181438775,-250.0,0.00017627,2]
[405482133,1771181438784,-2169.0,0.00018122,2]
[405482135,1771181438793,-634.0,0.00018122,2]
[405482137,1771181438803,-3844.8835887,0.00018129,2]
[405482139,1771181438813,-157.8484125,0.00018129,2]
[405482141,1771181438822,-173.8646846,0.00018129,2]
[405482143,1771181438831,-2094.03388,0.00018219,2]
[405482145,1771181438841,-154.89982728,0.00018219,2]
[405482146,1771181438850,-500.0,0.00018412,2]
[405482148,1771181438859,-500.0,0.00018412,2]
[405482151,1771181438869,-500.0,0.00018412,2]
[405482152,1771181438878,-500.0,0.00018414,2]
[405482154,1771181438888,-609.3533299,0.00018416,2]
[405482156,1771181438897,-420.0,0.00018602,2]
[405482159,1771181438907,-1680.0,0.00018644,2]
[405482161,1771181438916,-736.5,0.00018704,5]
[405482162,1771181438926,-185.19211439,0.0001873,2]
[405482164,1771181438936,-5710.64706306,0.0001899,2]
[405482561,1771181444421,-1700.79465789,0.0001662,2]
[405482707,1771181446257,-2365.22418132,0.0001662,2]
[405482709,1771181446270,-180.25839226,0.00018505,2]
[405482711,1771181446281,-12603.17292125,0.0001899,2]
[405482713,1771181446291,-500.0,0.00018999,2]
[405482716,1771181446302,-30000.78354886,0.00019,2]
[405482718,1771181446312,-730.9452358,0.00019018,2]
[405482720,1771181446322,-743.20205712,0.00019106,2]
[405482722,1771181446334,-160.0,0.00019108,2]
[405482724,1771181446343,-383.92,0.00019113,2]
[405482726,1771181446353,-151.0,0.00019178,2]
[405482728,1771181446362,-151.0,0.00019178,2]
[405482729,1771181446372,-151.0,0.00019178,2]
[405482731,1771181446381,-151.0,0.00019178,2]
[405482733,1771181446391,-151.0,0.00019178,2]
[405482736,1771181446402,-151.0,0.00019178,2]
[405482737,1771181446412,-212.263083,0.00019178,2]
[405482739,1771181446422,-179.069275,0.00019178,2]